[Event "Titled Tuesday Blitz December 20 Early 2022"]
[White "AttractiveChess"]
[Black "MartinMatthiesen"]
[WhiteElo "2784"]
[BlackElo "2497"]
[Result "1-0"]
[Round "05"]
[TimeControl "180+2"]
[Date "2022.12.20"]
[WhiteClock "0:01:59"]
[BlackClock "0:00:35"]

1. Nf3 {[%clk 0:02:55]}  d5 {[%clk 0:02:59]} 2. c4 {[%clk 0:02:55]}  c6 {[%clk 0:02:58]} 3. g3 {[%clk 0:02:55]}  Nf6 {[%clk 0:02:55]} 4. Bg2 {[%clk 0:02:55]}  dxc4 {[%clk 0:02:55]} 5. O-O {[%clk 0:02:55]}  Nbd7 {[%clk 0:02:41]} 6. Qc2 {[%clk 0:02:55]}  Nb6 {[%clk 0:02:40]} 7. a4 {[%clk 0:02:55]}  g6 {[%clk 0:02:32]} 8. a5 {[%clk 0:02:55]}  Nbd5 {[%clk 0:02:32]} 9. Qxc4 {[%clk 0:02:55]}  a6 {[%clk 0:02:28]} 10. d3 {[%clk 0:02:55]}  Bg7 {[%clk 0:02:27]} 11. Qh4 {[%clk 0:02:55]}  h6 {[%clk 0:02:26]} 12. Bd2 {[%clk 0:02:52]}  Qc7 {[%clk 0:02:11]} 13. Na3 {[%clk 0:02:51]}  e5 {[%clk 0:02:03]} 14. Qa4 {[%clk 0:02:47]}  O-O {[%clk 0:01:59]} 15. Rfc1 {[%clk 0:02:44]}  Re8 {[%clk 0:01:57]} 16. e4 {[%clk 0:02:44]}  Ne7 {[%clk 0:01:55]} 17. Nc4 {[%clk 0:02:44]}  Nd7 {[%clk 0:01:37]} 18. Bb4 {[%clk 0:02:44]}  c5 {[%clk 0:01:36]} 19. Nb6 {[%clk 0:02:39]}  Rb8 {[%clk 0:01:31]} 20. Bxc5 {[%clk 0:02:37]}  Qc6 {[%clk 0:01:20]} 21. Qxc6 {[%clk 0:02:14]}  Nxc6 {[%clk 0:01:20]} 22. Bd6 {[%clk 0:02:14]}  Nxb6 {[%clk 0:01:15]} 23. Bxb8 {[%clk 0:02:12]}  Nxb8 {[%clk 0:01:13]} 24. axb6 {[%clk 0:02:12]}  Nd7 {[%clk 0:01:14]} 25. Bh3 {[%clk 0:02:09]}  Nxb6 {[%clk 0:01:13]} 26. Bxc8 {[%clk 0:02:09]}  Nxc8 {[%clk 0:01:14]} 27. Rc7 {[%clk 0:02:10]}  Nd6 {[%clk 0:01:13]} 28. Rd7 {[%clk 0:02:08]}  Bf8 {[%clk 0:01:13]} 29. Rc1 {[%clk 0:02:08]}  Be7 {[%clk 0:00:38]} 30. Nxe5 {[%clk 0:02:03]}  Bg5 {[%clk 0:00:35]} 31. f4 {[%clk 0:01:59]} 1-0


[Site "https://www.chess.com"]

[Event "Titled Tuesday Blitz December 20 Early 2022"]
[White "Azoulas, Mark"]
[Black "kritipatel"]
[WhiteFideId "2033208"]
[WhiteElo "2326"]
[BlackElo "2085"]
[Result "1-0"]
[Round "05"]
[TimeControl "180+2"]
[Date "2022.12.20"]
[WhiteClock "0:01:26"]
[BlackClock "0:01:18"]

1. e4 {[%clk 0:02:57]}  e5 {[%clk 0:02:59]} 2. Nf3 {[%clk 0:02:55]}  Nc6 {[%clk 0:02:58]} 3. Bc4 {[%clk 0:02:54]}  Nf6 {[%clk 0:02:57]} 4. d3 {[%clk 0:02:47]}  Bc5 {[%clk 0:02:56]} 5. c3 {[%clk 0:02:45]}  d6 {[%clk 0:02:56]} 6. Bb3 {[%clk 0:02:44]}  O-O {[%clk 0:02:56]} 7. Nbd2 {[%clk 0:02:44]}  Ne7 {[%clk 0:02:54]} 8. Nf1 {[%clk 0:02:44]}  Ng4 {[%clk 0:02:51]} 9. Ne3 {[%clk 0:02:41]}  Nxe3 {[%clk 0:02:43]} 10. Bxe3 {[%clk 0:02:42]}  Bb6 {[%clk 0:02:43]} 11. O-O {[%clk 0:02:41]}  Ng6 {[%clk 0:02:44]} 12. h3 {[%clk 0:02:31]}  h6 {[%clk 0:02:44]} 13. d4 {[%clk 0:02:27]}  Qf6 {[%clk 0:02:42]} 14. Nh2 {[%clk 0:02:20]}  Be6 {[%clk 0:02:38]} 15. Ng4 {[%clk 0:02:19]}  Bxg4 {[%clk 0:02:34]} 16. Qxg4 {[%clk 0:02:20]}  Rad8 {[%clk 0:02:33]} 17. f4 {[%clk 0:02:17]}  exf4 {[%clk 0:02:29]} 18. Bxf4 {[%clk 0:02:17]}  Bxd4+ {[%clk 0:02:02]} 19. cxd4 {[%clk 0:02:08]}  Qxd4+ {[%clk 0:02:02]} 20. Kh1 {[%clk 0:02:05]}  Qxe4 {[%clk 0:02:02]} 21. Rae1 {[%clk 0:02:04]}  Qd3 {[%clk 0:02:02]} 22. Rf3 {[%clk 0:01:54]}  Ne5 {[%clk 0:01:30]} 23. Rxd3 {[%clk 0:01:51]}  Nxg4 {[%clk 0:01:28]} 24. hxg4 {[%clk 0:01:52]}  Rfe8 {[%clk 0:01:28]} 25. Rxe8+ {[%clk 0:01:51]}  Rxe8 {[%clk 0:01:29]} 26. Re3 {[%clk 0:01:51]}  Rd8 {[%clk 0:01:28]} 27. Re7 {[%clk 0:01:51]}  c5 {[%clk 0:01:27]} 28. Rxf7 {[%clk 0:01:50]}  Kh7 {[%clk 0:01:26]} 29. Rxb7 {[%clk 0:01:50]}  d5 {[%clk 0:01:26]} 30. Rxa7 {[%clk 0:01:50]}  d4 {[%clk 0:01:25]} 31. Rc7 {[%clk 0:01:47]}  d3 {[%clk 0:01:22]} 32. Rxc5 {[%clk 0:01:47]}  d2 {[%clk 0:01:20]} 33. Bd1 {[%clk 0:01:46]}  Rb8 {[%clk 0:01:17]} 34. Rc2 {[%clk 0:01:45]}  Rf8 {[%clk 0:01:15]} 35. Bxd2 {[%clk 0:01:37]}  Rf1+ {[%clk 0:01:15]} 36. Kh2 {[%clk 0:01:34]}  Rxd1 {[%clk 0:01:16]} 37. Bc3 {[%clk 0:01:33]}  Rb1 {[%clk 0:01:16]} 38. a4 {[%clk 0:01:31]}  Kg6 {[%clk 0:01:16]} 39. a5 {[%clk 0:01:31]}  Ra1 {[%clk 0:01:17]} 40. b4 {[%clk 0:01:31]}  Ra3 {[%clk 0:01:17]} 41. b5 {[%clk 0:01:28]}  Kg5 {[%clk 0:01:17]} 42. b6 {[%clk 0:01:27]}  h5 {[%clk 0:01:18]} 43. gxh5 {[%clk 0:01:27]}  Kxh5 {[%clk 0:01:19]} 44. b7 {[%clk 0:01:27]}  g5 {[%clk 0:01:20]} 45. b8=Q {[%clk 0:01:27]}  g4 {[%clk 0:01:19]} 46. Qh8+ {[%clk 0:01:26]}  Kg5 {[%clk 0:01:19]} 47. Bd2+ {[%clk 0:01:26]}  Kf5 {[%clk 0:01:19]} 48. Rc5+ {[%clk 0:01:26]}  Ke4 {[%clk 0:01:18]} 49. Qe5+ {[%clk 0:01:26]}  Kd3 {[%clk 0:01:18]} 50. Qe3# {[%clk 0:01:26]} 1-0


[Site "https://www.chess.com"]

[Event "Titled Tuesday Blitz December 20 Early 2022"]
[White "Baki, Peter"]
[Black "Calzadilla De la Cruz, Maray"]
[WhiteFideId "718459"]
[BlackFideId "3509770"]
[WhiteElo "2100"]
[BlackElo "1994"]
[Result "1-0"]
[Round "05"]
[TimeControl "180+2"]
[Date "2022.12.20"]
[WhiteClock "0:00:06"]
[BlackClock "0:00:20"]

1. e4 {[%clk 0:03:00]}  c5 {[%clk 0:02:58]} 2. Nf3 {[%clk 0:02:58]}  d6 {[%clk 0:02:58]} 3. Bb5+ {[%clk 0:02:57]}  Bd7 {[%clk 0:02:57]} 4. Bxd7+ {[%clk 0:02:57]}  Qxd7 {[%clk 0:02:57]} 5. O-O {[%clk 0:02:57]}  Nc6 {[%clk 0:02:57]} 6. Re1 {[%clk 0:02:57]}  g6 {[%clk 0:02:57]} 7. c3 {[%clk 0:02:57]}  Bg7 {[%clk 0:02:54]} 8. d4 {[%clk 0:02:58]}  cxd4 {[%clk 0:02:54]} 9. cxd4 {[%clk 0:02:59]}  e6 {[%clk 0:02:49]} 10. Nc3 {[%clk 0:02:58]}  Nge7 {[%clk 0:02:50]} 11. Bf4 {[%clk 0:02:56]}  e5 {[%clk 0:02:48]} 12. Be3 {[%clk 0:02:45]}  exd4 {[%clk 0:02:43]} 13. Nxd4 {[%clk 0:02:45]}  O-O {[%clk 0:02:41]} 14. Nxc6 {[%clk 0:02:39]}  Nxc6 {[%clk 0:02:40]} 15. Qd2 {[%clk 0:02:37]}  Ne5 {[%clk 0:02:35]} 16. Qe2 {[%clk 0:02:30]}  Rac8 {[%clk 0:02:23]} 17. Rad1 {[%clk 0:02:30]}  Nc4 {[%clk 0:02:22]} 18. Bd4 {[%clk 0:02:29]}  Qe6 {[%clk 0:02:20]} 19. Nd5 {[%clk 0:02:23]}  Rfe8 {[%clk 0:02:12]} 20. b3 {[%clk 0:02:05]}  Bxd4 {[%clk 0:01:54]} 21. Rxd4 {[%clk 0:02:06]}  Ne5 {[%clk 0:01:52]} 22. Qb2 {[%clk 0:01:51]}  f6 {[%clk 0:01:38]} 23. h3 {[%clk 0:01:47]}  Kf7 {[%clk 0:01:36]} 24. Red1 {[%clk 0:01:44]}  Nc6 {[%clk 0:01:32]} 25. R4d2 {[%clk 0:01:28]}  Qe5 {[%clk 0:01:32]} 26. Qa3 {[%clk 0:01:09]}  Rcd8 {[%clk 0:01:23]} 27. f3 {[%clk 0:00:46]}  f5 {[%clk 0:01:16]} 28. Ne3 {[%clk 0:00:42]}  fxe4 {[%clk 0:01:14]} 29. Nc4 {[%clk 0:00:42]}  Qc5+ {[%clk 0:01:15]} 30. Qxc5 {[%clk 0:00:42]}  dxc5 {[%clk 0:01:16]} 31. Nd6+ {[%clk 0:00:32]}  Rxd6 {[%clk 0:01:16]} 32. Rxd6 {[%clk 0:00:32]}  exf3 {[%clk 0:01:10]} 33. Rd7+ {[%clk 0:00:23]}  Kf6 {[%clk 0:01:09]} 34. R1d6+ {[%clk 0:00:23]}  Kg5 {[%clk 0:01:09]} 35. Rd5+ {[%clk 0:00:21]}  Kf6 {[%clk 0:01:00]} 36. Rxc5 {[%clk 0:00:18]}  Re2 {[%clk 0:00:52]} 37. gxf3 {[%clk 0:00:17]}  Ne5 {[%clk 0:00:52]} 38. Rxb7 {[%clk 0:00:12]}  Nxf3+ {[%clk 0:00:51]} 39. Kf1 {[%clk 0:00:12]}  Rd2 {[%clk 0:00:51]} 40. Rc3 {[%clk 0:00:12]}  Nd4 {[%clk 0:00:47]} 41. Rd7 {[%clk 0:00:10]}  Rd1+ {[%clk 0:00:47]} 42. Kf2 {[%clk 0:00:10]}  Ke6 {[%clk 0:00:47]} 43. Rd8 {[%clk 0:00:09]}  Ke7 {[%clk 0:00:46]} 44. Rcc8 {[%clk 0:00:08]}  h5 {[%clk 0:00:31]} 45. h4 {[%clk 0:00:07]}  a5 {[%clk 0:00:29]} 46. a3 {[%clk 0:00:07]}  Ke6 {[%clk 0:00:20]} 47. b4 {[%clk 0:00:07]}  axb4 {[%clk 0:00:19]} 48. axb4 {[%clk 0:00:07]}  Ke7 {[%clk 0:00:18]} 49. b5 {[%clk 0:00:07]}  Rd2+ {[%clk 0:00:18]} 50. Ke3 {[%clk 0:00:07]}  Rb2 {[%clk 0:00:18]} 51. Rxd4 {[%clk 0:00:06]}  Rxb5 {[%clk 0:00:19]} 52. Rc7+ {[%clk 0:00:07]}  Kf6 {[%clk 0:00:20]} 53. Rc6+ {[%clk 0:00:07]}  Kg7 {[%clk 0:00:19]} 54. Rd7+ {[%clk 0:00:06]}  Kh6 {[%clk 0:00:20]} 55. Rcc7 {[%clk 0:00:06]}  Rb3+ {[%clk 0:00:21]} 56. Kd4 {[%clk 0:00:06]}  g5 {[%clk 0:00:20]} 57. Rd6# {[%clk 0:00:06]} 1-0


[Site "https://www.chess.com"]

[Event "Titled Tuesday Blitz December 20 Early 2022"]
[White "Barbis, Athanasios"]
[Black "Sergey85Rodchenkov"]
[WhiteFideId "4215800"]
[WhiteElo "1953"]
[BlackElo "2458"]
[Result "0-1"]
[Round "05"]
[TimeControl "180+2"]
[Date "2022.12.20"]
[WhiteClock "0:00:01"]
[BlackClock "0:01:07"]

1. e4 {[%clk 0:03:00]}  c5 {[%clk 0:02:59]} 2. Nf3 {[%clk 0:03:00]}  d6 {[%clk 0:02:59]} 3. Bb5+ {[%clk 0:02:50]}  Nd7 {[%clk 0:02:56]} 4. c4 {[%clk 0:02:46]}  a6 {[%clk 0:02:52]} 5. Ba4 {[%clk 0:02:46]}  Nf6 {[%clk 0:02:49]} 6. Nc3 {[%clk 0:02:44]}  e6 {[%clk 0:02:43]} 7. O-O {[%clk 0:02:43]}  Be7 {[%clk 0:02:43]} 8. d4 {[%clk 0:02:41]}  cxd4 {[%clk 0:02:43]} 9. Nxd4 {[%clk 0:02:41]}  Qc7 {[%clk 0:02:44]} 10. Be3 {[%clk 0:02:35]}  O-O {[%clk 0:02:42]} 11. Rc1 {[%clk 0:02:33]}  Ne5 {[%clk 0:02:41]} 12. Qe2 {[%clk 0:02:27]}  Nxc4 {[%clk 0:02:17]} 13. Bg5 {[%clk 0:01:57]}  b5 {[%clk 0:01:59]} 14. Ncxb5 {[%clk 0:01:54]}  axb5 {[%clk 0:01:59]} 15. Bxb5 {[%clk 0:01:55]}  Qc5 {[%clk 0:01:54]} 16. Bxf6 {[%clk 0:01:06]}  Bxf6 {[%clk 0:01:52]} 17. Rxc4 {[%clk 0:01:07]}  Qb6 {[%clk 0:01:48]} 18. Rd1 {[%clk 0:00:57]}  Rxa2 {[%clk 0:01:41]} 19. Rb4 {[%clk 0:00:42]}  Qa5 {[%clk 0:01:34]} 20. Nc6 {[%clk 0:00:38]}  Qc7 {[%clk 0:01:34]} 21. Qc4 {[%clk 0:00:30]}  Ra8 {[%clk 0:01:31]} 22. Qc2 {[%clk 0:00:11]}  Bb7 {[%clk 0:01:26]} 23. Rc4 {[%clk 0:00:11]}  Qb6 {[%clk 0:01:26]} 24. Qb3 {[%clk 0:00:05]}  h6 {[%clk 0:01:22]} 25. h3 {[%clk 0:00:05]}  Rfc8 {[%clk 0:01:16]} 26. Rxd6 {[%clk 0:00:04]}  Be5 {[%clk 0:01:07]} 27. Nxe5 {[%clk 0:00:03]}  Qxd6 {[%clk 0:01:07]} 28. Rxc8+ {[%clk 0:00:02]}  Rxc8 {[%clk 0:01:07]} 29. Nf3 {[%clk 0:00:01]}  Rc1+ {[%clk 0:01:07]} 0-1


[Site "https://www.chess.com"]

[Event "Titled Tuesday Blitz December 20 Early 2022"]
[White "Benecke, Torsten"]
[Black "Jenkins, Drake"]
[WhiteFideId "16240995"]
[BlackFideId "2022397"]
[WhiteElo "1988"]
[BlackElo "2130"]
[Result "1-0"]
[Round "05"]
[TimeControl "180+2"]
[Date "2022.12.20"]
[WhiteClock "0:01:35"]
[BlackClock "0:00:05"]

1. e4 {[%clk 0:03:00]}  c5 {[%clk 0:02:59]} 2. Nf3 {[%clk 0:02:55]}  g6 {[%clk 0:02:59]} 3. d4 {[%clk 0:02:56]}  cxd4 {[%clk 0:03:00]} 4. Nxd4 {[%clk 0:02:57]}  Nf6 {[%clk 0:02:59]} 5. Nc3 {[%clk 0:02:55]}  Nc6 {[%clk 0:03:00]} 6. Be3 {[%clk 0:02:50]}  Bg7 {[%clk 0:03:00]} 7. f3 {[%clk 0:02:50]}  d5 {[%clk 0:02:59]} 8. Bb5 {[%clk 0:02:47]}  Bd7 {[%clk 0:02:50]} 9. exd5 {[%clk 0:02:44]}  Nxd4 {[%clk 0:02:43]} 10. Bxd7+ {[%clk 0:02:41]}  Qxd7 {[%clk 0:02:41]} 11. Bxd4 {[%clk 0:02:42]}  O-O {[%clk 0:02:38]} 12. O-O {[%clk 0:02:41]}  b5 {[%clk 0:02:28]} 13. a3 {[%clk 0:02:34]}  a5 {[%clk 0:02:27]} 14. Rb1 {[%clk 0:02:29]}  b4 {[%clk 0:02:25]} 15. axb4 {[%clk 0:02:28]}  axb4 {[%clk 0:02:26]} 16. Bxf6 {[%clk 0:02:28]}  exf6 {[%clk 0:02:07]} 17. Ne2 {[%clk 0:02:16]}  Rfd8 {[%clk 0:02:05]} 18. c4 {[%clk 0:02:12]}  bxc3 {[%clk 0:02:01]} 19. Nxc3 {[%clk 0:02:12]}  f5 {[%clk 0:01:59]} 20. Re1 {[%clk 0:02:13]}  Bxc3 {[%clk 0:01:43]} 21. bxc3 {[%clk 0:02:13]}  Ra2 {[%clk 0:01:39]} 22. Qd4 {[%clk 0:02:04]}  h5 {[%clk 0:01:23]} 23. c4 {[%clk 0:01:55]}  Qa4 {[%clk 0:01:06]} 24. Ra1 {[%clk 0:01:56]}  Rxa1 {[%clk 0:00:54]} 25. Rxa1 {[%clk 0:01:55]}  Qc2 {[%clk 0:00:55]} 26. d6 {[%clk 0:01:48]}  h4 {[%clk 0:00:44]} 27. h3 {[%clk 0:01:46]}  Qe2 {[%clk 0:00:32]} 28. d7 {[%clk 0:01:38]}  Qe7 {[%clk 0:00:27]} 29. Rd1 {[%clk 0:01:38]}  f4 {[%clk 0:00:19]} 30. c5 {[%clk 0:01:36]}  Qe3+ {[%clk 0:00:11]} 31. Qxe3 {[%clk 0:01:34]}  fxe3 {[%clk 0:00:12]} 32. c6 {[%clk 0:01:35]}  e2 {[%clk 0:00:11]} 33. Re1 {[%clk 0:01:35]}  Kf8 {[%clk 0:00:10]} 34. Rxe2 {[%clk 0:01:35]}  f5 {[%clk 0:00:05]} 35. c7 {[%clk 0:01:35]} 1-0


[Site "https://www.chess.com"]

[Event "Titled Tuesday Blitz December 20 Early 2022"]
[White "Bensenousi, Isk"]
[Black "Aradhya, Garg"]
[WhiteFideId "4206010"]
[BlackFideId "25006746"]
[WhiteElo "2041"]
[BlackElo "2284"]
[Result "0-1"]
[Round "05"]
[TimeControl "180+2"]
[Date "2022.12.20"]
[WhiteClock "0:00:01"]
[BlackClock "0:00:47"]

1. c4 {[%clk 0:03:00]}  e5 {[%clk 0:02:59]} 2. g3 {[%clk 0:02:59]}  Nc6 {[%clk 0:02:56]} 3. Bg2 {[%clk 0:02:59]}  Nf6 {[%clk 0:02:57]} 4. Nc3 {[%clk 0:02:59]}  g6 {[%clk 0:02:57]} 5. d3 {[%clk 0:02:57]}  Bg7 {[%clk 0:02:57]} 6. Nf3 {[%clk 0:02:58]}  O-O {[%clk 0:02:57]} 7. O-O {[%clk 0:02:59]}  Re8 {[%clk 0:02:54]} 8. Bg5 {[%clk 0:02:47]}  h6 {[%clk 0:02:49]} 9. Bxf6 {[%clk 0:02:47]}  Bxf6 {[%clk 0:02:50]} 10. Nd5 {[%clk 0:02:41]}  Bg7 {[%clk 0:02:50]} 11. e4 {[%clk 0:02:37]}  a5 {[%clk 0:02:48]} 12. b3 {[%clk 0:02:22]}  d6 {[%clk 0:02:47]} 13. Nd2 {[%clk 0:02:04]}  Nb4 {[%clk 0:02:41]} 14. Nxb4 {[%clk 0:01:48]}  axb4 {[%clk 0:02:42]} 15. Qc1 {[%clk 0:01:49]}  c6 {[%clk 0:02:27]} 16. a3 {[%clk 0:01:38]}  Qb6 {[%clk 0:02:26]} 17. a4 {[%clk 0:01:13]}  Be6 {[%clk 0:02:24]} 18. Qb2 {[%clk 0:01:08]}  d5 {[%clk 0:02:10]} 19. Rac1 {[%clk 0:00:37]}  Rad8 {[%clk 0:02:02]} 20. cxd5 {[%clk 0:00:33]}  cxd5 {[%clk 0:02:02]} 21. Rfe1 {[%clk 0:00:31]}  dxe4 {[%clk 0:01:56]} 22. dxe4 {[%clk 0:00:31]}  Qd4 {[%clk 0:01:49]} 23. Rc2 {[%clk 0:00:12]}  Rc8 {[%clk 0:01:43]} 24. Bf1 {[%clk 0:00:10]}  Rc3 {[%clk 0:01:37]} 25. Nc4 {[%clk 0:00:07]}  h5 {[%clk 0:01:27]} 26. Rxc3 {[%clk 0:00:06]}  bxc3 {[%clk 0:01:26]} 27. Qc2 {[%clk 0:00:06]}  Bh6 {[%clk 0:00:55]} 28. Rd1 {[%clk 0:00:06]}  Bd2 {[%clk 0:00:55]} 29. Nxd2 {[%clk 0:00:05]}  Rd8 {[%clk 0:00:56]} 30. Be2 {[%clk 0:00:01]}  cxd2 {[%clk 0:00:55]} 31. Bf3 {[%clk 0:00:01]}  Qd3 {[%clk 0:00:47]} 32. Qxd3 {[%clk 0:00:01]}  Rxd3 {[%clk 0:00:46]} 33. Be2 {[%clk 0:00:02]}  Rd4 {[%clk 0:00:47]} 34. Bc4 {[%clk 0:00:01]}  Bg4 {[%clk 0:00:47]} 0-1


[Site "https://www.chess.com"]

[Event "Titled Tuesday Blitz December 20 Early 2022"]
[White "Bilandani, Vansh"]
[Black "supertfc"]
[WhiteFideId "8511292"]
[WhiteElo "2488"]
[BlackElo "2268"]
[Result "1-0"]
[Round "05"]
[TimeControl "180+2"]
[Date "2022.12.20"]
[WhiteClock "0:00:10"]
[BlackClock "0:00:01"]

1. d4 {[%clk 0:03:00]}  Nf6 {[%clk 0:02:54]} 2. Nf3 {[%clk 0:03:00]}  d5 {[%clk 0:02:43]} 3. c4 {[%clk 0:02:59]}  e6 {[%clk 0:02:35]} 4. Nc3 {[%clk 0:02:52]}  Bb4 {[%clk 0:02:33]} 5. Qb3 {[%clk 0:02:36]}  Nc6 {[%clk 0:02:28]} 6. a3 {[%clk 0:02:13]}  Bd6 {[%clk 0:02:21]} 7. Bg5 {[%clk 0:02:05]}  dxc4 {[%clk 0:02:09]} 8. Qxc4 {[%clk 0:02:03]}  O-O {[%clk 0:01:48]} 9. e3 {[%clk 0:01:49]}  e5 {[%clk 0:01:40]} 10. d5 {[%clk 0:01:21]}  Nb8 {[%clk 0:01:24]} 11. Bd3 {[%clk 0:01:07]}  Nbd7 {[%clk 0:01:21]} 12. O-O {[%clk 0:00:53]}  a6 {[%clk 0:00:57]} 13. Qh4 {[%clk 0:00:40]}  h6 {[%clk 0:00:50]} 14. Bxh6 {[%clk 0:00:40]}  gxh6 {[%clk 0:00:51]} 15. Qxh6 {[%clk 0:00:41]}  Re8 {[%clk 0:00:50]} 16. Ng5 {[%clk 0:00:39]}  e4 {[%clk 0:00:32]} 17. Ncxe4 {[%clk 0:00:33]}  Bxh2+ {[%clk 0:00:15]} 18. Qxh2 {[%clk 0:00:29]}  Ne5 {[%clk 0:00:14]} 19. Qh6 {[%clk 0:00:16]}  Ng6 {[%clk 0:00:02]} 20. Nxf6+ {[%clk 0:00:14]}  Qxf6 {[%clk 0:00:01]} 21. Nxf7 {[%clk 0:00:10]} 1-0


[Site "https://www.chess.com"]

[Event "Titled Tuesday Blitz December 20 Early 2022"]
[White "CDOEspiao"]
[Black "Coachpoker"]
[WhiteElo "2486"]
[BlackElo "2626"]
[Result "1-0"]
[Round "05"]
[TimeControl "180+2"]
[Date "2022.12.20"]
[WhiteClock "0:00:18"]
[BlackClock "0:00:14"]

1. Nf3 {[%clk 0:02:59]}  c5 {[%clk 0:02:59]} 2. g3 {[%clk 0:03:00]}  Nc6 {[%clk 0:02:59]} 3. Bg2 {[%clk 0:03:01]}  g6 {[%clk 0:02:59]} 4. O-O {[%clk 0:03:01]}  Bg7 {[%clk 0:02:59]} 5. d3 {[%clk 0:03:02]}  e6 {[%clk 0:02:59]} 6. e4 {[%clk 0:03:02]}  Nge7 {[%clk 0:02:59]} 7. Nbd2 {[%clk 0:03:01]}  O-O {[%clk 0:02:59]} 8. c3 {[%clk 0:03:02]}  d6 {[%clk 0:02:59]} 9. a4 {[%clk 0:03:02]}  a6 {[%clk 0:02:57]} 10. Nc4 {[%clk 0:03:03]}  b6 {[%clk 0:02:52]} 11. Bg5 {[%clk 0:02:59]}  h6 {[%clk 0:02:50]} 12. Bd2 {[%clk 0:02:56]}  Rb8 {[%clk 0:02:50]} 13. Qc1 {[%clk 0:02:53]}  Kh7 {[%clk 0:02:49]} 14. h4 {[%clk 0:02:54]}  b5 {[%clk 0:02:49]} 15. axb5 {[%clk 0:02:55]}  axb5 {[%clk 0:02:50]} 16. Ne3 {[%clk 0:02:55]}  b4 {[%clk 0:02:49]} 17. Ng4 {[%clk 0:02:53]}  Ng8 {[%clk 0:02:47]} 18. d4 {[%clk 0:02:24]}  bxc3 {[%clk 0:02:47]} 19. bxc3 {[%clk 0:02:23]}  cxd4 {[%clk 0:02:45]} 20. cxd4 {[%clk 0:02:24]}  f5 {[%clk 0:02:27]} 21. exf5 {[%clk 0:01:58]}  gxf5 {[%clk 0:02:26]} 22. Nxh6 {[%clk 0:01:50]}  Bxh6 {[%clk 0:02:12]} 23. Bxh6 {[%clk 0:01:48]}  Nxh6 {[%clk 0:02:10]} 24. Ng5+ {[%clk 0:01:44]}  Kg6 {[%clk 0:02:06]} 25. Qxc6 {[%clk 0:01:38]}  Bb7 {[%clk 0:02:01]} 26. Qc4 {[%clk 0:01:34]}  Bxg2 {[%clk 0:01:56]} 27. Kxg2 {[%clk 0:00:51]}  d5 {[%clk 0:01:56]} 28. Qe2 {[%clk 0:00:47]}  Re8 {[%clk 0:01:52]} 29. Ra6 {[%clk 0:00:46]}  Rb6 {[%clk 0:01:50]} 30. Rfa1 {[%clk 0:00:42]}  Ng4 {[%clk 0:01:11]} 31. Rxb6 {[%clk 0:00:41]}  Qxb6 {[%clk 0:01:09]} 32. Ra6 {[%clk 0:00:41]}  Qxd4 {[%clk 0:01:06]} 33. Rxe6+ {[%clk 0:00:41]}  Rxe6 {[%clk 0:01:02]} 34. Qxe6+ {[%clk 0:00:41]}  Qf6 {[%clk 0:00:58]} 35. Qg8+ {[%clk 0:00:32]}  Kh5 {[%clk 0:00:51]} 36. Qxd5 {[%clk 0:00:20]}  Qf8 {[%clk 0:00:48]} 37. Ne6 {[%clk 0:00:16]}  Qf6 {[%clk 0:00:45]} 38. Nf4+ {[%clk 0:00:16]}  Kh6 {[%clk 0:00:44]} 39. Qa8 {[%clk 0:00:16]}  Kh7 {[%clk 0:00:41]} 40. Qb7+ {[%clk 0:00:16]}  Kh6 {[%clk 0:00:39]} 41. Qc8 {[%clk 0:00:16]}  Kh7 {[%clk 0:00:37]} 42. Qd7+ {[%clk 0:00:16]}  Kh6 {[%clk 0:00:37]} 43. Qe8 {[%clk 0:00:16]}  Kh7 {[%clk 0:00:35]} 44. Qh5+ {[%clk 0:00:15]}  Nh6 {[%clk 0:00:32]} 45. Nh3 {[%clk 0:00:08]}  Qc6+ {[%clk 0:00:30]} 46. Qf3 {[%clk 0:00:07]}  Qb5 {[%clk 0:00:28]} 47. Ng5+ {[%clk 0:00:07]}  Kg7 {[%clk 0:00:26]} 48. Ne6+ {[%clk 0:00:07]}  Kf6 {[%clk 0:00:23]} 49. Nf4 {[%clk 0:00:06]}  Ng4 {[%clk 0:00:21]} 50. Nd5+ {[%clk 0:00:06]}  Ke5 {[%clk 0:00:19]} 51. Ne3 {[%clk 0:00:06]}  Nh6 {[%clk 0:00:13]} 52. Qf4+ {[%clk 0:00:05]}  Kf6 {[%clk 0:00:10]} 53. Qxh6+ {[%clk 0:00:06]}  Kf7 {[%clk 0:00:11]} 54. Qh5+ {[%clk 0:00:06]}  Ke7 {[%clk 0:00:11]} 55. Qxf5 {[%clk 0:00:07]}  Qe2 {[%clk 0:00:09]} 56. Qf3 {[%clk 0:00:07]}  Qd2 {[%clk 0:00:08]} 57. Qe4+ {[%clk 0:00:07]}  Kf7 {[%clk 0:00:08]} 58. Qd5+ {[%clk 0:00:07]}  Qxd5+ {[%clk 0:00:07]} 59. Nxd5 {[%clk 0:00:08]}  Kg6 {[%clk 0:00:08]} 60. Ne3 {[%clk 0:00:09]}  Kh5 {[%clk 0:00:09]} 61. Kh3 {[%clk 0:00:10]}  Kg6 {[%clk 0:00:09]} 62. g4 {[%clk 0:00:11]}  Kh6 {[%clk 0:00:10]} 63. f4 {[%clk 0:00:12]}  Kg6 {[%clk 0:00:11]} 64. h5+ {[%clk 0:00:13]}  Kh6 {[%clk 0:00:11]} 65. Kh4 {[%clk 0:00:14]}  Kh7 {[%clk 0:00:11]} 66. g5 {[%clk 0:00:14]}  Kg7 {[%clk 0:00:12]} 67. f5 {[%clk 0:00:15]}  Kf7 {[%clk 0:00:12]} 68. h6 {[%clk 0:00:16]}  Kg8 {[%clk 0:00:13]} 69. Kh5 {[%clk 0:00:17]}  Kh8 {[%clk 0:00:13]} 70. g6 {[%clk 0:00:18]}  Kg8 {[%clk 0:00:13]} 71. f6 {[%clk 0:00:18]}  Kh8 {[%clk 0:00:14]} 72. Ng4 {[%clk 0:00:18]}  Kg8 {[%clk 0:00:14]} 73. Ne5 {[%clk 0:00:17]}  Kh8 {[%clk 0:00:14]} 74. Kg5 {[%clk 0:00:18]}  Kg8 {[%clk 0:00:15]} 75. h7+ {[%clk 0:00:18]}  Kh8 {[%clk 0:00:14]} 76. Nf7# {[%clk 0:00:18]} 1-0


[Site "https://www.chess.com"]

[Event "Titled Tuesday Blitz December 20 Early 2022"]
[White "Cag, Ceyda"]
[Black "Rosenberg, Sergei G"]
[WhiteFideId "34571477"]
[BlackFideId "4102444"]
[WhiteElo "2157"]
[BlackElo "2418"]
[Result "0-1"]
[Round "05"]
[TimeControl "180+2"]
[Date "2022.12.20"]
[WhiteClock "0:01:11"]
[BlackClock "0:01:52"]

1. e4 {[%clk 0:02:58]}  e5 {[%clk 0:02:58]} 2. Nf3 {[%clk 0:02:59]}  Nc6 {[%clk 0:02:59]} 3. Bc4 {[%clk 0:02:59]}  Nf6 {[%clk 0:02:59]} 4. Ng5 {[%clk 0:03:00]}  d5 {[%clk 0:02:59]} 5. exd5 {[%clk 0:03:00]}  Na5 {[%clk 0:03:00]} 6. Bb5+ {[%clk 0:03:01]}  c6 {[%clk 0:03:00]} 7. dxc6 {[%clk 0:03:01]}  bxc6 {[%clk 0:03:01]} 8. Qf3 {[%clk 0:03:01]}  h6 {[%clk 0:03:01]} 9. Ne4 {[%clk 0:02:54]}  cxb5 {[%clk 0:03:01]} 10. Nxf6+ {[%clk 0:02:51]}  gxf6 {[%clk 0:03:02]} 11. Qxa8 {[%clk 0:02:51]}  Qd7 {[%clk 0:03:03]} 12. Nc3 {[%clk 0:02:38]}  Nc6 {[%clk 0:02:52]} 13. Nd5 {[%clk 0:01:55]}  Be7 {[%clk 0:02:39]} 14. Nxe7 {[%clk 0:01:49]}  Kxe7 {[%clk 0:02:39]} 15. a4 {[%clk 0:01:43]}  Nd4 {[%clk 0:02:21]} 16. Qe4 {[%clk 0:01:33]}  Bb7 {[%clk 0:02:16]} 17. Qd3 {[%clk 0:01:26]}  Bxg2 {[%clk 0:02:11]} 18. Rf1 {[%clk 0:01:15]}  Rc8 {[%clk 0:01:59]} 19. c3 {[%clk 0:01:11]}  Nf3+ {[%clk 0:01:52]} 0-1


[Site "https://www.chess.com"]